Cogmind - Beta 14 @@@ ROGUE MODE // 2024.08.12 @ 13:41:31 Player: APerTAS Result: Destroyed by S-27 Virus with Autogun Performance ------------- Evolutions (4) 2000 Regions Visited (7) 1400 Robots Destroyed (0) 0 Value Destroyed (0) 0 Prototype IDs (0) 0 Alien Tech Used (0) 0 Bonus (1825) 1825 TOTAL SCORE: 5225 Bonus ------- Pacifist 1325 Entered DSFs 500 Cogmind --------- Core Integrity 0/850 Matter 263/300 Energy 98/100 System Corruption 1% Temperature Cool (18) Movement Core (50) Location -6/Lower Caves Parts ------- > --- POWER (1) -------- (None) > --- PROPULSION (2) --- (None) > --- UTILITY (2) ------ System Shield > --- WEAPON (10) ------ (None) > --- INVENTORY (5) ---- (None) Peak State ------------ > --- POWER ------------ (None) > --- PROPULSION ------- (None) > --- UTILITY ---------- System Shield > --- WEAPON ----------- (None) > --- INVENTORY -------- (None) [Rating: 3] Favorites ----------- Power None Propulsion None Utility System Shield Hackware System Shield Weapon None Build | -11 -10 -9 -8 -7 -7 -6 -6 ------- Run | Yrd Mat Mat Mat Fac DSF Fac Low Slots Evolved 8 | . . 2 2 2 . 2 . Power . | . . . . . . . . Propulsion . | . . . . . . . . Utility . | . . . . . . . . Weapon 8 | . . 2 2 2 . 2 . Parts Attached 2 | . . . 2 . . . . Power . | . . . . . . . . Engine . | . . . . . . . . Core . | . . . . . . . . Reactor . | . . . . . . . . Propulsion . | . . . . . . . . Treads . | . . . . . . . . Leg . | . . . . . . . . Wheel . | . . . . . . . . Hover . | . . . . . . . . Flight . | . . . . . . . . Utility 2 | . . . 2 . . . . Device . | . . . . . . . . Storage . | . . . . . . . . Processor . | . . . . . . . . Hackware 2 | . . . 2 . . . . Protection . | . . . . . . . . Artifact . | . . . . . . . . Weapon . | . . . . . . . . Energy Gun . | . . . . . . . . Energy Cannon . | . . . . . . . . Ballistic Gun . | . . . . . . . . Ballistic Cannon . | . . . . . . . . Launcher . | . . . . . . . . Special Weapon . | . . . . . . . . Impact Weapon . | . . . . . . . . Slashing Weapon . | . . . . . . . . Piercing Weapon . | . . . . . . . . Special Melee Weapon . | . . . . . . . . Unidentified Prototypes . | . . . . . . . . Parts Lost 1 | . . . 1 . . . . Power . | . . . . . . . . Propulsion . | . . . . . . . . Utility 1 | . . . 1 . . . . Weapon . | . . . . . . . . Highest Loss Streak 1 | . . . 1 . . . . To Critical Strikes . | . . . . . . . . Average Slot Usage (%) 4 | . . . 6 . 7 6 6 Hackware 4 | . . . 6 . 7 6 6 Peak Build Rating 3 | . . . 3 3 3 3 3 Average Rating 1 | . . . 1 3 3 3 3 On Entrance 1 | . . . . 3 3 3 3 Naked Turns 121 | . 27 51 43 . . . . Heaviest Build . | . . . . . . . . Greatest Support 3 | 3 3 3 3 3 3 3 3 Greatest Overweight (x) . | . . . . . . . . Average Overweight (x) . | . . . . . . . . Largest Inventory Capacity 5 | 5 5 5 5 5 5 5 5 Average Capacity 5 | 5 5 5 5 5 5 5 5 Most Carried . | . . . . . . . . Average Carried . | . . . . . . . . Final Capacity 5 | 5 5 5 5 5 5 5 5 Final Carried . | . . . . . . . . Class Distribution -------------------- 100% | Mutant Dominant Class ---------------- Mutant | -10/Materials Mutant | -9/Materials Mutant | -8/Materials Mutant | -7/Factory Mutant | -7/DSF Mutant | -6/Factory Mutant | -6/Lower Caves Resources | -11 -10 -9 -8 -7 -7 -6 -6 ----------- Run | Yrd Mat Mat Mat Fac DSF Fac Low Matter Collected 68 | 68 . . . . . . . Remotely . | . . . . . . . . Salvage Created . | . . . . . . . . Parts . | . . . . . . . . Haulers Intercepted . | . . . . . . . . Recyclers Shooed . | . . . . . . . . Parts Field Recycled . | . . . . . . . . Retrieved Matter . | . . . . . . . . Parts Self-Destructed . | . . . . . . . . Prevented . | . . . . . . . . Kills | -11 -10 -9 -8 -7 -7 -6 -6 ------- Run | Yrd Mat Mat Mat Fac DSF Fac Low Combat Hostiles Destroyed . | . . . . . . . . Classes Destroyed . | . . . . . . . . Best Kill Streak . | . . . . . . . . Combat Bots Only . | . . . . . . . . Max Kills in Single Turn . | . . . . . . . . Gunslinging . | . . . . . . . . Exploded . | . . . . . . . . Melee . | . . . . . . . . Uniques/NPCs Destroyed . | . . . . . . . . Combat | -11 -10 -9 -8 -7 -7 -6 -6 -------- Run | Yrd Mat Mat Mat Fac DSF Fac Low Hostile Shots Fired 179 | . . 52 37 . 1 61 28 Missed 75 | . . 22 19 . 1 20 13 Damage Taken 1454 | 5 . 337 254 . . 586 272 Core 1441 | 5 . 337 243 . . 584 272 Absorbed by Shields . | . . . . . . . . Core Remaining (%) 73 | 98 98 15 55 . 100 . . Volleys Fired . | . . . . . . . . Largest . | . . . . . . . . Hottest . | . . . . . . . . Shots Fired . | . . . . . . . . Gun . | . . . . . . . . Cannon . | . . . . . . . . Launcher . | . . . . . . . . Special . | . . . . . . . . Kinetic . | . . . . . . . . Thermal . | . . . . . . . . Explosive . | . . . . . . . . Electromagnetic . | . . . . . . . . Robot Hit Streak . | . . . . . . . . Robot Miss Streak . | . . . . . . . . Penetration Max . | . . . . . . . . Secondary Targets . | . . . . . . . . Shots Hit Robots . | . . . . . . . . Core Hits 8 | . . 1 4 . . 3 . Critical Kills . | . . . . . . . . Critical Parts Destroyed . | . . . . . . . . Critical Strikes . | . . . . . . . . Melee Attacks . | . . . . . . . . Impact . | . . . . . . . . Slashing . | . . . . . . . . Piercing . | . . . . . . . . Sneak Attacks . | . . . . . . . . Combat Hostiles . | . . . . . . . . Follow-up Attacks . | . . . . . . . . Damage Inflicted 160 | 10 . 48 61 . . 37 4 Guns . | . . . . . . . . Cannons . | . . . . . . . . Explosions . | . . . . . . . . Melee . | . . . . . . . . Ramming 160 | 10 . 48 61 . . 37 4 Kinetic . | . . . . . . . . Thermal . | . . . . . . . . Explosive . | . . . . . . . . Electromagnetic . | . . . . . . . . Impact . | . . . . . . . . Slashing . | . . . . . . . . Piercing . | . . . . . . . . Highest Corruption 10 | . . 2 10 . . . 1 Average Corruption 4 | . . 2 5 . . . 1 Corruption Purged . | . . . . . . . . Corruption Blocked . | . . . . . . . . Effects 2 | . . . 2 . . . . Heat Flow Errors 1 | . . . 1 . . . . Misdirections 1 | . . . 1 . . . . Overload Shots . | . . . . . . . . Overflow Damage . | . . . . . . . . Projectiles . | . . . . . . . . Explosions . | . . . . . . . . Melee . | . . . . . . . . Knockbacks 1 | . . 1 . . . . . Impact 1 | . . 1 . . . . . Kinetic . | . . . . . . . . Secondary . | . . . . . . . . Self-Inflicted Damage 73 | 5 . 21 28 . . 17 2 Shots . | . . . . . . . . Rammed 35 | 1 . 8 18 . . 7 1 Targets Rammed 35 | 1 . 8 18 . . 7 1 Kicked . | . . . . . . . . Crushed . | . . . . . . . . Highest Temperature 192 | . . 5 192 . . . . Average Temperature 98 | . . 5 114 . . . . Received Heat Transfer 261 | . . 117 54 . . 18 72 Siege Activations . | . . . . . . . . Robots Corrupted . | . . . . . . . . Combat Hostiles . | . . . . . . . . Parts Fried . | . . . . . . . . Impact Corruptions . | . . . . . . . . Robots Melted . | . . . . . . . . Combat Hostiles . | . . . . . . . . Parts Melted . | . . . . . . . . Heat Transferred . | . . . . . . . . Parts Sabotaged . | . . . . . . . . Parts Stolen . | . . . . . . . . Parts Stripped . | . . . . . . . . Power Chain Reactions . | . . . . . . . . Alert | -11 -10 -9 -8 -7 -7 -6 -6 ------- Run | Yrd Mat Mat Mat Fac DSF Fac Low Peak Influence 189 | . . 60 189 85 59 120 . Initial 85 | . . . 25 85 59 30 . Average 59 | . . 15 98 85 59 56 . Maximum Alert Level . | . . . . . . . . Low Security (%) 100 | 100 100 100 100 100 100 100 . Level 1 . | . . . . . . . . Level 2 . | . . . . . . . . Level 3 . | . . . . . . . . Level 4 . | . . . . . . . . Level 5 . | . . . . . . . . High Security . | . . . . . . . . Max Security . | . . . . . . . . Squads Dispatched 9 | . . 3 4 . . 2 . Investigation 3 | . . 1 2 . . . . Extermination . | . . . . . . . . Reinforcement 6 | . . 2 2 . . 2 . Assault . | . . . . . . . . Garrison . | . . . . . . . . Intercept . | . . . . . . . . Searches Triggered . | . . . . . . . . Construction Impeded 1 | . . 1 . . . . . Haulers Reinforced . | . . . . . . . . Active Scanning Responses . | . . . . . . . . Cargo Convoy Interrupts . | . . . . . . . . Stealth | -11 -10 -9 -8 -7 -7 -6 -6 --------- Run | Yrd Mat Mat Mat Fac DSF Fac Low Distress Signals 3 | . . . 3 . . . . Communications Jammed . | . . . . . . . . Distress Signals . | . . . . . . . . Times Spotted 50 | . . 19 15 . . 9 7 Peak Tracking Total 16 | . . 16 9 . 1 6 7 Tactical Retreats 5 | . . 1 3 . . 1 . Traps | -11 -10 -9 -8 -7 -7 -6 -6 ------- Run | Yrd Mat Mat Mat Fac DSF Fac Low Traps Triggered 2 | . . 2 . . . . . Indirectly . | . . . . . . . . Trap Hack Attempts . | . . . . . . . . Triggered . | . . . . . . . . Disarmed . | . . . . . . . . Reprogrammed . | . . . . . . . . Reused . | . . . . . . . . Traps Extracted . | . . . . . . . . Installed . | . . . . . . . . Triggered . | . . . . . . . . Machines | -11 -10 -9 -8 -7 -7 -6 -6 ---------- Run | Yrd Mat Mat Mat Fac DSF Fac Low Machines Disabled . | . . . . . . . . Max in Single Turn . | . . . . . . . . Machines Repaired . | . . . . . . . . Machines Dismantled . | . . . . . . . . Machines Sabotaged . | . . . . . . . . Overloaded Fab Kills . | . . . . . . . . Hacking | -11 -10 -9 -8 -7 -7 -6 -6 --------- Run | Yrd Mat Mat Mat Fac DSF Fac Low Machines Accessed 6 | . . . 4 1 . 1 . Terminals 5 | . . . 4 1 . . . Fabricators . | . . . . . . . . Repair Stations . | . . . . . . . . Recycling Units . | . . . . . . . . Scanalyzers . | . . . . . . . . Garrison Access 1 | . . . . . . 1 . Total Hacks 25 | . . . 22 2 . 1 . Successful 6 | . . . 5 1 . . . Failed 19 | . . . 17 1 . 1 . Catastrophic 4 | . . . 3 . . 1 . Database Lockouts . | . . . . . . . . Manual 24 | . . . 23 . . 1 . Terminals 24 | . . . 22 2 . . . Fabricators . | . . . . . . . . Repair Stations . | . . . . . . . . Recycling Units . | . . . . . . . . Scanalyzers . | . . . . . . . . Garrison Access 1 | . . . . . . 1 . Terminal Hacks 3 | . . . 2 1 . . . Open DSF 1 | . . . . 1 . . . Branch Access Points 1 | . . . 1 . . . . Recall Investigation 1 | . . . 1 . . . . Fabricator Hacks . | . . . . . . . . Repair Station Hacks . | . . . . . . . . Recycling Unit Hacks . | . . . . . . . . Scanalyzer . | . . . . . . . . Garrison Access Hacks . | . . . . . . . . Unauthorized Hacks 3 | . . . 3 . . . . Terminals 3 | . . . 3 . . . . Botnet 3 | . . . 3 . . . . Fabricators . | . . . . . . . . Repair Stations . | . . . . . . . . Recycling Units . | . . . . . . . . Scanalyzers . | . . . . . . . . Garrison Access . | . . . . . . . . Data Cores Recovered . | . . . . . . . . Used . | . . . . . . . . Hacking Detections 5 | . . . 4 . . 1 . Full Trace Events 3 | . . . 3 . . . . Feedback Events 1 | . . . 1 . . . . Corruption 1 | . . . 1 . . . . Feedback Blocked . | . . . . . . . . Robot Schematics Acquired . | . . . . . . . . Robots Built . | . . . . . . . . Authchips . | . . . . . . . . Time . | . . . . . . . . Total Robot Build Rating . | . . . . . . . . Part Schematics Acquired . | . . . . . . . . Parts Built . | . . . . . . . . Authchips . | . . . . . . . . Time . | . . . . . . . . Total Part Build Rating . | . . . . . . . . Parts Repaired . | . . . . . . . . Time . | . . . . . . . . Parts Recycled . | . . . . . . . . Recycled Matter . | . . . . . . . . Retrieved Matter . | . . . . . . . . Retrieved Components . | . . . . . . . . Parts Scanalyzed . | . . . . . . . . Part Schematics Acquired . | . . . . . . . . Parts Damaged . | . . . . . . . . Bothacking | -11 -10 -9 -8 -7 -7 -6 -6 ------------ Run | Yrd Mat Mat Mat Fac DSF Fac Low Used RIF Installer . | . . . . . . . . Robots Hacked . | . . . . . . . . Non-combat . | . . . . . . . . Combat . | . . . . . . . . Robot Hacks Applied . | . . . . . . . . Relay Couplers Released . | . . . . . . . . Fabnet Peak Effective % . | . . . . . . . . Robots Rewired . | . . . . . . . . Allies Hacked . | . . . . . . . . Hacks Repelled . | . . . . . . . . Allies | -11 -10 -9 -8 -7 -7 -6 -6 -------- Run | Yrd Mat Mat Mat Fac DSF Fac Low Total Allies . | . . . . . . . . Largest Group . | . . . . . . . . Highest-Rated Group . | . . . . . . . . Highest-Rated Ally . | . . . . . . . . Total Orders . | . . . . . . . . Ally Attacks . | . . . . . . . . Total Damage . | . . . . . . . . Kills . | . . . . . . . . Allies Corrupted . | . . . . . . . . Allies Melted . | . . . . . . . . Intel | -11 -10 -9 -8 -7 -7 -6 -6 ------- Run | Yrd Mat Mat Mat Fac DSF Fac Low Robot Analysis Total . | . . . . . . . . Derelict Logs Recovered . | . . . . . . . . Drone Launches . | . . . . . . . . Drone Recoveries . | . . . . . . . . Exploration | -11 -10 -9 -8 -7 -7 -6 -6 ------------- Run | Yrd Mat Mat Mat Fac DSF Fac Low Turns Passed 389 | 11 27 51 121 4 15 124 36 Spaces Moved 701 | 20 53 86 199 9 30 234 70 Core 701 | 20 53 86 199 9 30 234 70 Treads . | . . . . . . . . Legs . | . . . . . . . . Wheels . | . . . . . . . . Hover . | . . . . . . . . Flight . | . . . . . . . . Fastest Speed 50 | 50 50 50 50 50 50 50 50 Average Speed 50 | 50 50 50 50 50 50 50 50 Slowest Speed 50 | 50 50 50 50 50 50 50 50 Overloaded Moves . | . . . . . . . . Propulsion Burnouts . | . . . . . . . . Robots Hopped . | . . . . . . . . Cave-ins Triggered . | . . . . . . . . Exploration Rate (%) 19 | 3 19 14 29 . 40 10 18 Regions Visited 7 Branch Regions 1 Pre-discovered Areas . | . . . . . . . . Known Exits Taken 1 | . . . . 1 . . . Unknown Exits Taken 5 | 1 1 1 1 . . 1 . Scrap Searched . | . . . . . . . . Spaces Dug . | . . . . . . . . Terrain Destroyed . | . . . . . . . . Melee . | . . . . . . . . Projectile . | . . . . . . . . AOE . | . . . . . . . . Terrain Rammed . | . . . . . . . . Walls Destroyed . | . . . . . . . . Machines Disabled . | . . . . . . . . Actions | -11 -10 -9 -8 -7 -7 -6 -6 --------- Run | Yrd Mat Mat Mat Fac DSF Fac Low Total 731 | 20 52 93 218 8 29 240 71 Wait . | . . . . . . . . Move 695 | 19 52 85 198 8 29 234 70 Hop . | . . . . . . . . Pick Up . | . . . . . . . . Fast Attach 2 | . . . 2 . . . . Attach . | . . . . . . . . Detach . | . . . . . . . . Swap . | . . . . . . . . Drop . | . . . . . . . . Fire . | . . . . . . . . Melee . | . . . . . . . . Ram 34 | 1 . 8 18 . . 6 1 Kick . | . . . . . . . . Crush . | . . . . . . . . Escape Stasis . | . . . . . . . . Rewire . | . . . . . . . . Trap . | . . . . . . . . Miscellaneous . | . . . . . . . . Route ------- -11/Scrapyard -10/Materials -9/Materials -8/Materials -7/Factory -7/DSF -6/Factory -6/Lower Caves History --------- Turn | Location | Event 2 | -11/Scrapyard | Discovered new exit (range 16) 12 | -11/Scrapyard | Entered Materials 33 | -10/Materials | Discovered new exit (range 10) 39 | -10/Materials | Entered another Materials area 39 | -9/Materials | Evolved 2 slots: Weapon x2 83 | -9/Materials | Discovered new exit (range 13) 84 | -9/Materials | Core integrity fell below 50% 89 | -9/Materials | Core integrity fell below 20% 90 | -9/Materials | Entered another Materials area 90 | -8/Materials | Evolved 2 slots: Weapon x2 183 | -8/Materials | System corruption reached 10% 203 | -8/Materials | Discovered new exit (range 12) 211 | -8/Materials | Entered Factory 211 | -7/Factory | Evolved 2 slots: Weapon x2 215 | -7/Factory | Identified exit to DSF 215 | -7/Factory | Entered DSF 224 | -7/DSF | Discovered new exit (range 12) 230 | -7/DSF | Entered Factory 230 | -6/Factory | Evolved 2 slots: Weapon x2 313 | -6/Factory | Build established: Mutant 339 | -6/Factory | Core integrity fell below 50% 352 | -6/Factory | Discovered new exit (range 4) 354 | -6/Factory | Entered Lower Caves 377 | -6/Lower Caves | Attracted the attention of an 0b10 outpost 387 | -6/Lower Caves | Core integrity fell below 20% 390 | -6/Lower Caves | Destroyed by S-27 Virus with Autogun Last Messages --------------- 00290_ K-01 Serf collects debris. 00304_ O-24 Administrator: "IFF HANDSHAKE FAILED. SECURING TERMINAL." 00307_ O-24 Administrator uses terminal to summon reinforcements. 00307_ ALERT: Hostiles spotted, dispatching reinforcements to Terminal F009. 00307_ O-24 Administrator locks terminal. 00310_ Slammed into S-27 Virus. 00335_ K-01 Serf collects debris. 00352_ EXIT=FOUND 00354_ Slammed into Y-54 Guardian. 00354_ Destabilizing: Core damaged (-25). LOCATION=UNKNOWN GOAL=ESCAPE 00376_ Penetrated by Slug. 00376_ G-50 Soldier springs to life. 00377_ Y-64 Sentinel: "DETECTED UNIDENTIFIED DERELICT." 00381_ Y-64 Sentinel: "REQUESTING BACKUP." 00384_ Slammed into S-27 Virus. 00384_ Destabilizing: System corrupted (+1). 00386_ Penetrated by Slug. Map ----- +----------------------------------------------------+ | ?????????????????????????????????????????????????? | | ?????????????????????????????????????????????????? | | ?????????????????????????????????????????????????? | | ?????????????????????????????????????????????????? | | ?????????????????????????????????????????????????? | | ?????????????????????????????????????????????????? | | ?????????????????????????????????????????????????? | | ?????????????????????????????????????????????????? | | ?????????????????????????????????????????????????? | | ?????????????????????????????????????????????????? | | ?????????????????????????????????????????????????? | | ?????????????????????????????????????????????????? | | ?????????????????????????????????????????????????? | | ?????????????????????????????????????????????????? | | ?????????????????????????????????????????????????? | | ??????????????????????????###????????????????????? | | ????????????????????????## ###??????????????????? | | ???????????????????????## ###????????????????? | | ??????????????????????## ?????????????????? | | ?????????????????????? ??????????????????? | | ??????????????????????? ???????????????????? | | ??????????????????????? ????????????????????? | | ???????????????????????? #?????????? ?????????? | | ???????????????????????? #??##?? ?? ?????????? | | ????????????????????????# #?# ### ?????????? | | ???????????????????????##@ ## ## ????????? | | ???????????????????????# ##??????? | | ???????????????????????# #??????? | | ???????????????????????# ### ??????? | | ???????????????????????## ### ??????? | | ????????????????????????## # ???????? | | ????????????????????????##s ######## # ????????? | | ???????????????????????## # # "# ?????????? | | ???????????????????????# # "# ?????????? | | ???????????###???####?## + "# ??????????? | | ??????????## #?## ### ggg + "# ####???????? | | ?????????## ## ## g # "# ## ##??????? | | ?????????# #### # # ?# #??##### | | ?????????## ##??# ####+### ##?# | | ??????????## #???# ### | | ???????????### ######## ## ## | | ?????????????###### #??????###### ## # | | ??????????????????# ##???????????## # | | ?????????????????# #????????????## # | | ?????????????????# #??????????## | | ?????????????????#### #??????????# | | ????????????????????## #??????????# | | ?????????????????????# #??????????## | | ????????????????????? #??????????# | | ???????????????????? ???????# ## | +----------------------------------------------------+ Best States ------------- Heat Dissipation 37 Energy Generation 5 Energy Capacity 100 Matter Stores 263 Matter Capacity 300 Sight Range 16 Terrain Scan Density 10 Evasion (%) 50 Defensive Hacking 10 Item Schematics ----------------- None Robot Schematics ------------------ None Fabricated ------------ Nothing Alien Tech Used ----------------- None Achievements -------------- None Challenges ------------ None Game ------ Seed GaussExpertTerrabomb Manual? 0 Play Time 00:06:11 Cumulative 21.3 hours Start 2024.08.12 @ 13:35:45 End 2024.08.12 @ 13:41:31 Sessions 1 Manual Loads 0 Difficulty Rogue Special Mode None Game No. 106 Rogue 106 Adventurer 0 Explorer 0 Win Type - Total 0 Types 0/0/0/0/0/0/0/0/0 Lore% 33 Gallery% 25 Achievement% 32 Wizard Run 0 Options --------- Layout 0 ASCII 0 Keyboard 0 Movement Arrows Keybinds 0 Fullscreen 2 Font 18/Terminus Map View 76x50 Zoom Use 0% Tactical HUD 1 Map Filters NONE Filters NONE Steam 1 RUN: a4ea03f3-5d4f-461d-9191-27dc2042bd73